bitfinex-derivatives/quotes_SOLF0:USTF0_20260118
["timestamp","ask_amount","ask_price","bid_price","bid_amount"]
[1768734429201,5.31935043,142.33,142.21,3.22721715]
[1768734429403,5.31935043,142.32,142.21,3.22721715]
[1768734429601,5.31935043,142.31,142.21,3.22721715]
[1768734429802,203.98344327,142.34,142.21,3.22721715]
[1768734430003,5.3187301,142.33,142.21,3.22721715]
[1768734430202,5.3187301,142.32,142.21,3.22721715]
[1768734430411,5.3187301,142.31,142.21,3.22721715]
[1768734430607,203.98344327,142.34,142.21,3.22721715]
[1768734430808,5.31817605,142.33,142.21,3.22721715]
[1768734431112,5.31817605,142.32,142.21,3.22721715]
[1768734431309,5.31817605,142.31,142.21,3.22721715]
[1768734431511,203.98344327,142.34,142.21,3.22721715]
[1768734431712,5.31772427,142.33,142.21,3.22721715]
[1768734432012,5.31772427,142.32,142.21,3.22721715]
[1768734432211,5.31772427,142.31,142.21,3.22721715]
[1768734432413,203.98344327,142.34,142.21,3.22721715]
[1768734432614,5.31711117,142.33,142.21,3.22721715]
[1768734432809,5.31711117,142.32,142.21,3.22721715]
[1768734433011,21.11,142.41,142.22,3.22721715]
[1768734433204,5.31677953,142.4,142.22,3.22721715]
[1768734433404,5.31677953,142.39,142.22,3.22721715]
[1768734433619,5.31677953,142.38,142.22,3.22721715]
[1768734433807,5.31677953,142.37,142.22,3.22721715]
[1768734434006,5.31540912,142.36,142.22,3.22721715]
[1768734434207,5.31540912,142.35,142.22,3.22721715]
[1768734434508,5.31540912,142.34,142.22,3.22721715]
[1768734434710,5.31540912,142.33,142.22,3.22721715]
[1768734434912,21.11,142.41,142.22,3.22721715]
[1768734435211,5.31423939,142.4,142.22,3.22721715]
[1768734435515,5.31423939,142.39,142.22,3.22721715]
[1768734435706,5.31423939,142.38,142.22,3.22721715]
[1768734435910,5.31423939,142.37,142.22,3.22721715]
[1768734436109,5.31423939,142.36,142.22,3.22721715]
[1768734436308,5.31423939,142.35,142.22,3.22721715]
[1768734436511,5.31423939,142.34,142.22,3.22721715]
[1768734436712,5.31423939,142.33,142.22,3.22721715]
[1768734436904,21.11,142.41,142.22,3.22721715]
[1768734437110,5.31232311,142.4,142.22,3.22721715]
[1768734437311,5.31232311,142.39,142.22,3.22721715]
[1768734437510,5.31232311,142.38,142.22,3.22721715]
[1768734437712,5.31232311,142.37,142.22,3.22721715]
[1768734437922,5.31232311,142.36,142.22,3.22721715]
[1768734438122,5.31232311,142.35,142.22,3.22721715]
[1768734438322,5.31232311,142.34,142.22,3.22721715]
[1768734438522,5.31232311,142.33,142.22,3.22721715]
[1768734438727,21.11,142.41,142.22,3.22721715]
[1768734438927,5.31082204,142.4,142.22,3.22721715]
[1768734439227,5.31082204,142.39,142.22,3.22721715]
[1768734439427,5.31082204,142.38,142.22,3.22721715]
[1768734439726,5.31082204,142.37,142.22,3.22721715]
[1768734439918,5.31082204,142.36,142.22,3.22721715]
[1768734440117,5.31082204,142.35,142.22,3.22721715]
[1768734440319,5.31082204,142.34,142.22,3.22721715]
[1768734440528,21.11,142.41,142.22,3.22721715]
[1768734440726,5.30963608,142.4,142.22,3.22721715]
[1768734440929,5.30963608,142.39,142.22,3.22721715]
[1768734441128,5.30963608,142.38,142.22,3.22721715]
[1768734441329,5.30963608,142.37,142.22,3.22721715]
[1768734441629,5.30963608,142.36,142.22,3.22721715]
[1768734441829,5.30963608,142.35,142.22,3.22721715]
[1768734442022,5.30963608,142.34,142.22,3.22721715]
[1768734442223,21.11,142.41,142.22,3.22721715]
[1768734442424,5.30870813,142.4,142.22,3.22721715]
[1768734442722,5.30870813,142.39,142.22,3.22721715]
[1768734442925,5.30870813,142.38,142.22,3.22721715]
[1768734443225,5.30870813,142.37,142.22,3.22721715]
[1768734443523,5.30870813,142.36,142.22,3.22721715]
[1768734443723,5.30870813,142.35,142.22,3.22721715]
[1768734443935,5.30870813,142.34,142.22,3.22721715]
[1768734444131,21.11,142.41,142.22,3.22721715]
[1768734444323,5.30587047,142.4,142.22,3.22721715]
[1768734444524,5.30587047,142.39,142.22,3.22721715]
[1768734444724,5.30587047,142.38,142.22,3.22721715]
[1768734444930,5.30587047,142.37,142.22,3.22721715]
[1768734445131,5.30587047,142.36,142.22,3.22721715]
[1768734445319,5.30587047,142.35,142.22,3.22721715]
[1768734445523,5.30587047,142.34,142.22,3.22721715]
[1768734445725,21.11,142.41,142.22,3.22721715]
[1768734445930,5.30527,142.4,142.22,3.22721715]
[1768734446125,5.30527,142.39,142.22,3.22721715]
[1768734446327,5.30527,142.38,142.22,3.22721715]
[1768734446628,5.30527,142.37,142.22,3.22721715]
[1768734446827,5.30527,142.36,142.22,3.22721715]
[1768734447126,5.30527,142.35,142.22,3.22721715]
[1768734447327,5.30527,142.34,142.22,3.22721715]
[1768734447526,21.11,142.41,142.22,3.22721715]
[1768734447728,5.30486109,142.4,142.22,3.22721715]
[1768734447928,5.30486109,142.39,142.22,3.22721715]
[1768734448227,5.30486109,142.38,142.22,3.22721715]
[1768734448427,5.30486109,142.37,142.22,3.22721715]
[1768734448622,5.30486109,142.36,142.22,3.22721715]
[1768734448821,5.30486109,142.35,142.22,3.22721715]
[1768734449026,5.30486109,142.34,142.22,3.22721715]
[1768734449227,21.11,142.41,142.22,3.22721715]
[1768734449436,5.30463269,142.4,142.22,3.22721715]
[1768734449635,5.30463269,142.39,142.22,3.22721715]
[1768734449835,5.30463269,142.38,142.22,3.22721715]
[1768734450034,5.30463269,142.37,142.22,3.22721715]
[1768734450229,5.30463269,142.36,142.22,3.22721715]
[1768734450435,5.30463269,142.35,142.22,3.22721715]
[1768734450636,5.30463269,142.34,142.22,3.22721715]
[1768734450835,21.11,142.41,142.22,3.22721715]
[1768734451133,5.30458418,142.4,142.22,3.22721715]
[1768734451334,5.30458418,142.39,142.22,3.22721715]
[1768734451534,5.30458418,142.38,142.22,3.22721715]
[1768734451834,5.30458418,142.37,142.22,3.22721715]
[1768734452030,5.30458418,142.36,142.22,3.22721715]
[1768734452231,5.30458418,142.35,142.22,3.22721715]
[1768734452429,5.30458418,142.34,142.22,3.22721715]
[1768734452630,5.30458418,142.33,142.22,3.22721715]
[1768734452833,21.11,142.39,142.22,3.22721715]
[1768734453036,5.30485078,142.38,142.22,3.22721715]
[1768734453233,5.30485078,142.37,142.22,3.22721715]
[1768734453436,5.30485078,142.36,142.22,3.22721715]
[1768734453741,5.30485078,142.35,142.22,3.22721715]
[1768734453937,5.30485078,142.34,142.22,3.22721715]
[1768734454137,5.30485078,142.33,142.22,3.22721715]
[1768734454438,21.11,142.39,142.22,3.22721715]
[1768734454634,5.30536032,142.38,142.22,3.22721715]
[1768734454931,5.30536032,142.37,142.22,3.22721715]
[1768734455133,5.30536032,142.36,142.22,3.22721715]
[1768734455333,5.30536032,142.35,142.22,3.22721715]
[1768734455534,5.30536032,142.34,142.22,3.22721715]
[1768734455735,5.30536032,142.33,142.22,3.22721715]
[1768734455937,21.11,142.39,142.22,3.22721715]
[1768734456142,5.30589373,142.38,142.22,3.22721715]
[1768734456336,5.30589373,142.37,142.22,3.22721715]
[1768734456640,5.30589373,142.36,142.22,3.22721715]
[1768734456837,5.30589373,142.35,142.22,3.22721715]
[1768734457038,5.30589373,142.34,142.22,3.22721715]
[1768734457238,5.30589373,142.33,142.22,3.22721715]
[1768734457437,21.11,142.38,142.22,3.22721715]
[1768734457640,5.30706039,142.37,142.22,3.22721715]
[1768734457840,5.30706039,142.36,142.22,3.22721715]
[1768734458144,5.30706039,142.35,142.22,3.22721715]
[1768734458341,5.30706039,142.34,142.22,3.22721715]
[1768734458542,5.30706039,142.33,142.22,3.22721715]
[1768734458744,21.11,142.39,142.22,3.22721715]
[1768734459044,26.41769607,142.38,142.22,3.22721715]
[1768734459242,5.30769607,142.37,142.22,3.22721715]
[1768734459443,5.30769607,142.36,142.22,3.22721715]
[1768734459643,5.30769607,142.35,142.22,3.22721715]
[1768734459847,5.30769607,142.34,142.22,3.22721715]
[1768734460144,5.30769607,142.33,142.22,3.22721715]
[1768734460337,5.30769607,142.32,142.22,3.22721715]
[1768734460531,21.11,142.37,142.22,3.22721715]
[1768734460737,5.30944045,142.36,142.22,3.22721715]
[1768734460938,5.30944045,142.35,142.22,3.22721715]
[1768734461139,5.30944045,142.34,142.22,3.22721715]
[1768734461338,5.30944045,142.33,142.22,3.22721715]
[1768734461539,5.30944045,142.32,142.22,3.22721715]
[1768734461735,5.30944045,142.31,142.22,3.22721715]
[1768734461938,21.11,142.36,142.22,3.22721715]
[1768734462141,5.31012925,142.35,142.22,3.22721715]
[1768734462448,5.31012925,142.34,142.22,3.22721715]
[1768734462648,226.04668027,142.42,142.22,3.22721715]
[1768734462649,5.31012925,142.33,142.22,3.22721715]
[1768734462948,5.31012925,142.32,142.22,3.22721715]
[1768734463246,5.31012925,142.31,142.22,3.22721715]
[1768734463446,21.11,142.37,142.22,3.22721715]
[1768734463643,26.42178772,142.36,142.22,3.22721715]
[1768734463842,5.31178772,142.35,142.22,3.22721715]
[1768734464042,5.31178772,142.34,142.22,3.22721715]
[1768734464244,5.31178772,142.33,142.22,3.22721715]
[1768734464446,5.31178772,142.32,142.22,3.22721715]
[1768734464648,5.31178772,142.31,142.22,3.22721715]
[1768734464848,21.11,142.38,142.22,3.22721715]
[1768734465052,21.11,142.36,142.22,3.22721715]
[1768734465348,5.3127221,142.35,142.22,3.22721715]
[1768734465537,5.3127221,142.34,142.22,3.22721715]
[1768734465745,5.3127221,142.33,142.22,3.22721715]
[1768734466042,5.3127221,142.32,142.22,3.22721715]
[1768734466243,5.3127221,142.31,142.22,3.22721715]
[1768734466444,21.11,142.4,142.22,3.22721715]
[1768734466644,21.11,142.38,142.22,3.22721715]
[1768734466842,21.11,142.36,142.22,3.22721715]
[1768734467045,5.3138094,142.35,142.22,3.22721715]
[1768734467248,5.3138094,142.34,142.22,3.22721715]
[1768734467451,5.3138094,142.33,142.22,3.22721715]
[1768734467646,5.3138094,142.32,142.22,3.22721715]
[1768734467845,5.3138094,142.31,142.22,3.22721715]
[1768734468050,5.3138094,142.3,142.22,3.22721715]
[1768734468252,21.11,142.36,142.22,3.22721715]
[1768734468453,5.31647725,142.35,142.22,3.22721715]
[1768734468657,5.31647725,142.34,142.22,3.22721715]
[1768734468953,5.31647725,142.33,142.22,3.22721715]
[1768734469249,5.31647725,142.32,142.22,3.22721715]
[1768734469451,5.31647725,142.31,142.22,3.22721715]
[1768734469650,5.31647725,142.3,142.22,3.22721715]
[1768734469853,227.70814081,142.34,142.22,3.22721715]
[1768734470060,5.31593793,142.33,142.22,3.22721715]
[1768734470248,5.31593793,142.32,142.22,3.22721715]
[1768734470443,5.31593793,142.31,142.22,3.22721715]
[1768734470648,5.31593793,142.3,142.22,3.22721715]
[1768734470854,227.70814081,142.34,142.22,3.22721715]
[1768734471050,5.31554998,142.33,142.22,3.22721715]
[1768734471353,5.31554998,142.32,142.22,3.22721715]
[1768734471552,5.31554998,142.31,142.22,3.22721715]
[1768734471745,5.31554998,142.3,142.22,3.22721715]
[1768734471944,5.31554998,142.29,142.22,3.22721715]
[1768734472146,227.70814081,142.34,142.22,3.22721715]
[1768734472355,5.31480892,142.33,142.22,3.22721715]
[1768734472555,227.70814081,142.34,142.22,3.22721715]
[1768734472556,5.31480892,142.32,142.22,3.22721715]
[1768734472853,5.31480892,142.31,142.22,3.22721715]
[1768734473044,5.31480892,142.3,142.22,3.22721715]
[1768734473246,227.70814081,142.34,142.22,3.22721715]
[1768734473459,5.31353063,142.33,142.22,3.22721715]
[1768734473755,5.31353063,142.32,142.22,3.22721715]
[1768734473952,5.31353063,142.31,142.22,3.22721715]
[1768734474149,5.31353063,142.3,142.22,3.22721715]
[1768734474453,227.70814081,142.34,142.22,3.22721715]
[1768734474649,5.32163442,142.33,142.22,3.22721715]
[1768734474848,5.32163442,142.32,142.22,3.22721715]
[1768734475049,5.32163442,142.31,142.22,3.22721715]
[1768734475246,5.32163442,142.3,142.22,3.22721715]
[1768734475443,227.70814081,142.34,142.22,3.22721715]
[1768734475646,5.32113002,142.33,142.22,3.22721715]
[1768734475847,5.32113002,142.32,142.22,3.22721715]
[1768734476060,5.32113002,142.31,142.22,3.22721715]
[1768734476249,5.32113002,142.3,142.22,3.22721715]
[1768734476548,227.70814081,142.34,142.22,3.22721715]
[1768734476745,5.32065733,142.33,142.22,3.22721715]
[1768734476949,5.32065733,142.32,142.22,3.22721715]
[1768734477149,5.32065733,142.31,142.22,3.22721715]
[1768734477357,5.32065733,142.3,142.22,3.22721715]
[1768734477554,227.70814081,142.34,142.22,3.22721715]
[1768734477859,5.32022362,142.33,142.22,3.22721715]
[1768734478057,5.32022362,142.32,142.22,3.22721715]
[1768734478261,5.32022362,142.31,142.22,3.22721715]
[1768734478463,5.32022362,142.3,142.22,3.22721715]
[1768734478663,227.70814081,142.34,142.22,3.22721715]
[1768734478864,5.31994981,142.33,142.22,3.22721715]
[1768734479168,5.31994981,142.32,142.22,3.22721715]
[1768734479363,5.31994981,142.31,142.22,3.22721715]
[1768734479563,5.31994981,142.3,142.22,3.22721715]
[1768734479862,227.70814081,142.34,142.22,3.22721715]
[1768734480064,5.31972793,142.33,142.22,3.22721715]
[1768734480362,5.31972793,142.32,142.22,3.22721715]
[1768734480562,5.31972793,142.31,142.22,3.22721715]
[1768734480856,227.70814081,142.34,142.22,3.22721715]
[1768734480857,5.31972793,142.3,142.22,3.22721715]
[1768734481058,248.81814081,142.34,142.22,3.22721715]
[1768734481252,5.31944354,142.33,142.22,3.22721715]
[1768734481449,5.31944354,142.32,142.22,3.22721715]
[1768734481650,5.31944354,142.31,142.22,3.22721715]
[1768734481856,5.31944354,142.3,142.22,3.22721715]
[1768734482058,5.31944354,142.29,142.22,3.22721715]
[1768734482259,248.81814081,142.34,142.22,3.22721715]
[1768734482459,5.31868861,142.33,142.22,3.22721715]
[1768734482665,5.31868861,142.32,142.22,3.22721715]
[1768734482864,5.31868861,142.31,142.22,3.22721715]
[1768734483059,5.31868861,142.3,142.22,3.22721715]
[1768734483258,5.31868861,142.29,142.22,3.22721715]
[1768734483459,248.81814081,142.34,142.22,3.22721715]
[1768734483763,5.31842275,142.33,142.22,3.22721715]
[1768734483961,5.31842275,142.32,142.22,3.22721715]
[1768734484162,5.31842275,142.31,142.22,3.22721715]
[1768734484364,5.31842275,142.3,142.22,3.22721715]
[1768734484663,248.81814081,142.34,142.22,3.22721715]
[1768734484864,5.31584154,142.33,142.22,3.22721715]
[1768734485065,5.31584154,142.32,142.22,3.22721715]
[1768734485264,5.31584154,142.31,142.22,3.22721715]
[1768734485464,5.31584154,142.3,142.22,3.22721715]
[1768734485668,248.81814081,142.34,142.22,3.22721715]
[1768734485869,5.31570339,142.33,142.22,3.22721715]
[1768734486069,5.31570339,142.32,142.22,3.22721715]
[1768734486263,5.31570339,142.31,142.22,3.22721715]
[1768734486465,5.31570339,142.3,142.22,3.22721715]
[1768734486665,248.81814081,142.34,142.22,3.22721715]
[1768734486863,5.31526143,142.33,142.22,3.22721715]
[1768734487064,5.31526143,142.32,142.22,3.22721715]
[1768734487265,5.31526143,142.31,142.22,3.22721715]
[1768734487465,5.31526143,142.3,142.22,3.22721715]
[1768734487661,248.81814081,142.34,142.22,3.22721715]
[1768734487868,5.31523423,142.33,142.22,3.22721715]
[1768734488065,5.31523423,142.32,142.22,3.22721715]
[1768734488266,5.31523423,142.31,142.22,3.22721715]
[1768734488468,5.31523423,142.3,142.22,3.22721715]
[1768734488769,248.81814081,142.34,142.22,3.22721715]
[1768734488963,5.31531115,142.33,142.22,3.22721715]
[1768734489165,5.31531115,142.32,142.22,3.22721715]
[1768734489462,5.31531115,142.31,142.22,3.22721715]
[1768734489663,5.31531115,142.3,142.22,3.22721715]
[1768734489862,248.81814081,142.34,142.22,3.22721715]
[1768734490059,5.31545083,142.33,142.22,3.22721715]
[1768734490266,5.31545083,142.32,142.22,3.22721715]
[1768734490469,5.31545083,142.31,142.22,3.22721715]
[1768734490668,5.31545083,142.3,142.22,3.22721715]
[1768734490967,248.81814081,142.34,142.22,3.22721715]
[1768734491166,5.31563564,142.33,142.22,3.22721715]
[1768734491367,5.31563564,142.32,142.22,3.22721715]
[1768734491562,5.31563564,142.31,142.22,3.22721715]
[1768734491769,5.31563564,142.3,142.22,3.22721715]
[1768734491967,5.31563564,142.29,142.22,3.22721715]
[1768734492168,248.81814081,142.34,142.22,3.22721715]
[1768734492462,5.3162119,142.33,142.22,3.22721715]
[1768734492664,5.3162119,142.32,142.22,3.22721715]
[1768734492865,5.3162119,142.31,142.22,3.22721715]
[1768734493063,5.3162119,142.3,142.22,3.22721715]
[1768734493265,5.3162119,142.29,142.22,3.22721715]
[1768734493466,248.81814081,142.34,142.22,3.22721715]
[1768734493667,5.31661142,142.33,142.22,3.22721715]
[1768734493869,5.31661142,142.32,142.22,3.22721715]
[1768734494166,5.31661142,142.31,142.22,3.22721715]
[1768734494367,5.31661142,142.3,142.22,3.22721715]
[1768734494565,5.31661142,142.29,142.22,3.22721715]
[1768734494767,248.81814081,142.34,142.22,3.22721715]
[1768734494967,5.31709307,142.33,142.22,3.22721715]
[1768734495267,5.31709307,142.32,142.22,3.22721715]
[1768734495471,5.31709307,142.31,142.22,3.22721715]
[1768734495673,5.31709307,142.3,142.22,3.22721715]
[1768734495970,5.31709307,142.29,142.22,3.22721715]
[1768734496171,248.81814081,142.34,142.22,3.22721715]
[1768734496365,5.3183405,142.33,142.22,3.22721715]
[1768734496566,5.3183405,142.32,142.22,3.22721715]
[1768734496769,5.3183405,142.31,142.22,3.22721715]
[1768734496970,5.3183405,142.3,142.22,3.22721715]
[1768734497172,5.3183405,142.29,142.22,3.22721715]
[1768734497368,248.81814081,142.34,142.22,3.22721715]
[1768734497571,5.31838719,142.33,142.22,3.22721715]
[1768734497767,5.31838719,142.32,142.22,3.22721715]
[1768734497967,5.31838719,142.31,142.22,3.22721715]
[1768734498268,5.31838719,142.3,142.22,3.22721715]
[1768734498463,5.31838719,142.29,142.22,3.22721715]
[1768734498671,248.81814081,142.34,142.22,3.22721715]
[1768734498975,5.31858885,142.33,142.22,3.22721715]
[1768734499268,5.31858885,142.32,142.22,3.22721715]
[1768734499470,5.31858885,142.31,142.22,3.22721715]
[1768734499670,5.31858885,142.3,142.22,3.22721715]
[1768734499874,5.31858885,142.29,142.22,3.22721715]
[1768734500174,5.31858885,142.28,142.22,3.22721715]
[1768734500375,248.81814081,142.34,142.22,3.22721715]
[1768734500577,5.31848563,142.33,142.22,3.22721715]
[1768734500779,5.31848563,142.32,142.22,3.22721715]
[1768734501077,5.31848563,142.31,142.22,3.22721715]
[1768734501378,5.31848563,142.3,142.22,3.22721715]
[1768734501578,5.31848563,142.29,142.22,3.22721715]
[1768734501792,5.31848563,142.28,142.22,3.22721715]
[1768734502084,5.31848563,142.27,142.22,3.22721715]
[1768734502290,248.81814081,142.34,142.22,3.22721715]
[1768734502585,21.11,142.32,142.22,3.22721715]
[1768734502780,5.31847544,142.31,142.22,3.22721715]
[1768734502982,5.31847544,142.3,142.22,3.22721715]
[1768734503181,5.31847544,142.29,142.22,3.22721715]
[1768734503382,5.31847544,142.28,142.22,3.22721715]
[1768734503583,5.31847544,142.27,142.22,3.22721715]
[1768734503786,21.11,142.33,142.22,3.22721715]
[1768734504085,26.42833149,142.32,142.22,3.22721715]
[1768734504285,5.31833149,142.31,142.22,3.22721715]
[1768734504582,5.31833149,142.3,142.22,3.22721715]
[1768734504780,5.31833149,142.29,142.22,3.22721715]
[1768734504981,5.31833149,142.28,142.22,3.22721715]
[1768734505182,5.31833149,142.27,142.22,3.22721715]
[1768734505383,21.11,142.33,142.22,3.22721715]
[1768734505578,26.42473077,142.32,142.22,3.22721715]
[1768734505786,5.31473077,142.31,142.22,3.22721715]
[1768734505983,5.31473077,142.3,142.22,3.22721715]
[1768734506188,5.31473077,142.29,142.22,3.22721715]
[1768734506379,5.31473077,142.28,142.22,3.22721715]
[1768734506583,5.31473077,142.27,142.22,3.22721715]
[1768734506783,21.11,142.33,142.22,3.22721715]
[1768734506984,26.42441381,142.32,142.22,3.22721715]
[1768734507182,5.31441381,142.31,142.22,3.22721715]
[1768734507384,5.31441381,142.3,142.22,3.22721715]
[1768734507588,5.31441381,142.29,142.22,3.22721715]
[1768734507783,5.31441381,142.28,142.22,3.22721715]
[1768734508078,5.31441381,142.27,142.22,3.22721715]
[1768734508282,21.11,142.33,142.22,3.22721715]
[1768734508484,26.42389517,142.32,142.22,3.22721715]
[1768734508685,5.31389517,142.31,142.22,3.22721715]
[1768734508879,5.31389517,142.3,142.22,3.22721715]
[1768734509080,5.31389517,142.29,142.22,3.22721715]
[1768734509288,5.31389517,142.28,142.22,3.22721715]
[1768734509489,5.31389517,142.27,142.22,3.22721715]
[1768734509686,21.11,142.33,142.22,3.22721715]
[1768734509884,26.42375617,142.32,142.22,3.22721715]
[1768734510085,5.31375617,142.31,142.22,3.22721715]
[1768734510387,5.31375617,142.3,142.22,3.22721715]
[1768734510588,5.31375617,142.29,142.22,3.22721715]
[1768734510787,5.31375617,142.28,142.22,3.22721715]
[1768734510987,5.31375617,142.27,142.22,3.22721715]
[1768734511289,21.11,142.33,142.22,3.22721715]
[1768734511484,26.42331394,142.32,142.22,3.22721715]
[1768734511684,5.31331394,142.31,142.22,3.22721715]
[1768734511880,5.31331394,142.3,142.22,3.22721715]
[1768734512083,5.31331394,142.29,142.22,3.22721715]
[1768734512383,5.31331394,142.28,142.22,3.22721715]
[1768734512580,5.31331394,142.27,142.22,3.22721715]
[1768734512781,21.11,142.33,142.22,3.22721715]
[1768734513080,26.42301578,142.32,142.22,3.22721715]
[1768734513286,5.31301578,142.31,142.22,3.22721715]
[1768734513486,5.31301578,142.3,142.22,3.22721715]
[1768734513692,5.31301578,142.29,142.22,3.22721715]
[1768734513993,5.31301578,142.28,142.22,3.22721715]
[1768734514187,21.11,142.32,142.22,3.22721715]
[1768734514188,5.31301578,142.27,142.22,3.22721715]
[1768734514389,21.11,142.32,142.22,3.22721715]
[1768734514590,5.31317273,142.31,142.22,3.22721715]
[1768734514888,5.31317273,142.3,142.22,3.22721715]
[1768734515088,5.31317273,142.29,142.22,3.22721715]
[1768734515294,5.31317273,142.28,142.22,3.22721715]
[1768734515494,5.31317273,142.27,142.22,3.22721715]
[1768734515687,21.11,142.32,142.22,3.22721715]
[1768734515888,5.31322074,142.31,142.22,3.22721715]
[1768734516087,5.31322074,142.3,142.22,3.22721715]
[1768734516284,5.31322074,142.29,142.22,3.22721715]
[1768734516496,5.31322074,142.28,142.22,3.22721715]
[1768734516687,5.31322074,142.27,142.22,3.22721715]
[1768734516888,21.11,142.32,142.22,3.22721715]
[1768734517181,5.31334565,142.31,142.22,3.22721715]
[1768734517394,5.31334565,142.3,142.22,3.22721715]
[1768734517593,5.31334565,142.29,142.22,3.22721715]
[1768734517794,5.31334565,142.28,142.22,3.22721715]
[1768734517989,5.31334565,142.27,142.22,3.22721715]
[1768734518184,21.11,142.33,142.22,3.22721715]
[1768734518383,26.42335452,142.32,142.22,3.22721715]
[1768734518587,5.31335452,142.31,142.22,3.22721715]
[1768734518789,5.31335452,142.3,142.22,3.22721715]
[1768734518995,5.31335452,142.29,142.22,3.22721715]
[1768734519195,5.31335452,142.28,142.22,3.22721715]
[1768734519394,5.31335452,142.27,142.22,3.22721715]
[1768734519691,21.11,142.33,142.22,3.22721715]
[1768734519692,0.19581714,142.31,142.22,2.98091225]
[1768734519891,0.1961045,142.29,142.22,2.98091225]
[1768734520090,5.50952899,142.28,142.22,2.98091225]
[1768734520293,5.31342449,142.27,142.22,2.98091225]
[1768734520591,0.1961045,142.28,142.22,2.98091225]
[1768734520790,5.31355102,142.27,142.22,2.98091225]
[1768734520993,0.1961045,142.28,142.22,2.98091225]
[1768734521194,5.31358343,142.27,142.22,2.98091225]
[1768734521397,0.1961045,142.28,142.22,2.98091225]
[1768734521695,5.31373289,142.27,142.22,2.98091225]
[1768734521898,0.1961045,142.28,142.22,2.98091225]
[1768734522091,5.31373289,142.27,142.22,2.98091225]
[1768734522288,0.1961045,142.28,142.22,2.98091225]
[1768734522489,5.31392721,142.27,142.22,2.98091225]
[1768734522693,0.1961045,142.28,142.22,2.98091225]
[1768734522892,5.31391524,142.27,142.22,2.98091225]
[1768734523090,0.1961045,142.28,142.22,2.98091225]
[1768734523291,5.31391524,142.27,142.22,2.98091225]
[1768734523491,0.1961045,142.28,142.22,2.98091225]
[1768734523689,5.3141567,142.27,142.22,2.98091225]
[1768734523892,0.1961045,142.28,142.22,2.98091225]
[1768734524092,5.31413635,142.27,142.22,2.98091225]
[1768734524393,0.1961045,142.28,142.22,2.98091225]
[1768734524592,5.31442787,142.27,142.22,2.98091225]
[1768734524792,0.1961045,142.28,142.22,2.98091225]
[1768734524992,5.31442787,142.27,142.22,2.98091225]
[1768734525193,0.1961045,142.28,142.22,2.98091225]
[1768734525492,5.31444934,142.27,142.22,2.98091225]
[1768734525692,0.1961045,142.28,142.22,2.98091225]
[1768734525995,5.31560529,142.27,142.22,2.98091225]
[1768734526197,0.1961045,142.28,142.22,2.98091225]
[1768734526398,5.31569181,142.27,142.22,2.98091225]
[1768734526697,0.1961045,142.28,142.22,2.98091225]
[1768734526900,5.31569181,142.27,142.22,2.98091225]
[1768734527194,0.1961045,142.28,142.22,2.98091225]
[1768734527395,5.31582038,142.27,142.22,2.98091225]
[1768734527596,0.1961045,142.28,142.22,2.98091225]
[1768734527786,5.3158144,142.27,142.22,2.98091225]
[1768734527990,0.1961045,142.28,142.22,2.98091225]
[1768734528191,5.3158144,142.27,142.22,2.98091225]
[1768734528490,0.19826996,142.33,142.22,2.98091225]
[1768734528691,5.31670352,142.32,142.22,2.98091225]
[1768734528895,5.31670352,142.31,142.22,2.98091225]
[1768734529091,5.31670352,142.3,142.22,2.98091225]
[1768734529291,5.31670352,142.29,142.22,2.98091225]
[1768734529498,0.19850723,142.32,142.22,2.98091225]
[1768734529698,5.31687727,142.31,142.22,2.98091225]
[1768734529895,5.31687727,142.3,142.22,2.98091225]
[1768734530094,5.31687727,142.29,142.22,2.98091225]
[1768734530294,0.19850723,142.32,142.22,2.98091225]
[1768734530494,5.31699652,142.31,142.22,2.98091225]
[1768734530700,5.31699652,142.3,142.22,2.98091225]
[1768734530887,5.31699652,142.29,142.22,2.98091225]
[1768734531094,0.19850723,142.32,142.22,2.98091225]
[1768734531294,5.31703814,142.31,142.22,2.98091225]
[1768734531496,5.31703814,142.3,142.22,2.98091225]
[1768734531698,5.31703814,142.29,142.22,2.98091225]
[1768734531900,0.19850723,142.32,142.22,2.98091225]
[1768734532103,5.31715334,142.31,142.22,2.98091225]
[1768734532300,0.19850723,142.32,142.22,2.98091225]
[1768734532301,5.31715334,142.3,142.22,2.98091225]
[1768734532600,5.31715334,142.29,142.22,2.98091225]
[1768734532802,0.19850723,142.32,142.22,2.98091225]
[1768734533001,5.31729385,142.31,142.22,2.98091225]
[1768734533306,5.31729385,142.3,142.22,2.98091225]
[1768734533508,5.31729385,142.29,142.22,2.98091225]
[1768734533706,5.31729385,142.28,142.22,2.98091225]
[1768734533907,0.19850723,142.32,142.22,2.98091225]
[1768734534110,5.31168857,142.31,142.22,2.98091225]
[1768734534409,5.31168857,142.3,142.22,2.98091225]
[1768734534602,5.31168857,142.29,142.22,2.98091225]
[1768734534801,0.19850723,142.32,142.22,2.98091225]
[1768734535004,5.31183378,142.31,142.22,2.98091225]
[1768734535204,5.31183378,142.3,142.22,2.98091225]
[1768734535406,5.31183378,142.29,142.22,2.98091225]
[1768734535613,5.31183378,142.28,142.22,2.98091225]
[1768734535911,0.19850723,142.32,142.22,2.98091225]